bitfinex-derivatives/quotes_ETHF0:USTF0_20251028
["timestamp","ask_amount","ask_price","bid_price","bid_amount"]
[1761680710791,0.7845,4064.1,4064.0,3.2078]
[1761680710985,0.7845,4064.1,4064.0,7.8268]
[1761680710986,0.5709,4064.1,4064.0,7.8268]
[1761680711190,0.3399,4064.1,4064.0,7.8268]
[1761680713390,0.7845,4064.1,4064.0,3.2078]
[1761680713689,0.7845,4063.6,4063.5,3.2078]
[1761680713987,0.3399,4063.6,4063.5,7.8258]
[1761680714393,0.3399,4063.6,4063.5,8.26877]
[1761680714897,0.3399,4063.6,4063.5,7.8258]
[1761680715290,0.5709,4063.6,4063.5,7.8258]
[1761680716097,0.7845,4063.6,4063.5,7.8258]
[1761680717184,0.7845,4063.2,4063.1,0.00309267]
[1761680717385,3.9923,4063.2,4063.1,0.00309267]
[1761680717592,0.7845,4063.2,4063.1,0.00309267]
[1761680719596,0.7845,4063.2,4061.7,1.75394001]
[1761680719597,0.7845,4061.1,4061.0,1.75394001]
[1761680719797,0.7845,4061.1,4060.0,3.2078]
[1761680719798,0.7845,4060.1,4060.0,2.19242501]
[1761680719993,0.3399,4059.9,4059.8,0.02509989]
[1761680720496,0.3399,4059.9,4059.8,0.02790719]
[1761680720497,0.78654381,4059.9,4059.8,0.02790719]
[1761680722799,0.34194381,4059.9,4059.8,0.02790719]
[1761680723597,0.4736,4061.0,4060.8,0.44327]
[1761680723799,0.4736,4061.0,4059.8,3.21653524]
[1761680723800,0.4736,4061.0,4060.9,4.619]
[1761680724001,0.4736,4061.5,4060.9,4.619]
[1761680724204,0.4736,4061.5,4061.1,3.2078]
[1761680724205,0.3399,4061.4,4061.1,3.2078]
[1761680724698,0.34179504,4061.4,4061.1,3.2078]
[1761680724903,0.34179504,4061.4,4061.1,3.65103]
[1761680725102,0.34179504,4061.4,4061.2,0.44322]
[1761680725298,0.34179504,4061.4,4061.3,4.619]
[1761680726400,0.57279504,4061.4,4061.3,4.619]
[1761680727406,0.57279504,4061.4,4061.1,3.2078]
[1761680727407,0.3399,4061.3,4061.1,3.2078]
[1761680727604,0.7845,4061.2,4061.1,3.2078]
[1761680727912,0.3399,4060.6,4060.5,3.2078]
[1761680728103,0.3399,4061.0,4060.7,0.44327]
[1761680728909,0.3399,4061.0,4060.5,7.4228]
[1761680729106,0.3399,4061.0,4060.8,0.44326]
[1761680729410,0.5709,4061.0,4060.9,4.619]
[1761680730204,0.3399,4061.0,4060.9,4.619]
[1761680730404,0.5709,4061.0,4060.9,4.619]
[1761680731107,0.3399,4060.6,4060.5,3.2078]
[1761680731409,0.3399,4061.0,4060.7,0.44327]
[1761680732112,0.4736,4060.8,4060.7,0.44327]
[1761680732309,0.1337,4060.8,4060.7,0.44327]
[1761680732615,0.3399,4060.7,4060.5,3.2078]
[1761680732911,0.3399,4060.7,4060.6,4.619]
[1761680734219,0.3399,4060.7,4060.6,5.06229]
[1761680734512,0.3399,4060.7,4060.6,4.619]
[1761680735612,0.7845,4060.7,4060.6,4.619]
[1761680735807,0.7845,4060.5,4060.4,3.2078]
[1761680736007,0.7845,4060.5,4060.4,7.8268]
[1761680739415,0.231,4059.9,4059.8,0.02790719]
[1761680739612,0.231,4059.9,4059.1,3.2078]
[1761680739613,0.801,4059.2,4059.1,3.2078]
[1761680740608,0.2299,4059.2,4059.1,0.00243442]
[1761680740806,0.4558,4059.2,4059.1,0.00243442]
[1761680741216,0.7999,4059.2,4059.1,0.00243442]
[1761680743507,0.7999,4059.2,4058.6,3.2078]
[1761680743710,0.3441,4058.3,4058.1,3.2078]
[1761680743918,0.7999,4058.2,4058.1,3.2078]
[1761680744421,0.1384,4058.4,4057.8,0.0246439]
[1761680744422,0.7999,4057.9,4057.8,0.0246439]
[1761680744618,4.0098349,4057.9,4057.8,0.02758756]
[1761680746111,0.8020349,4057.9,4057.8,0.02758756]
[1761680749231,0.85252939,4059.5,4058.9,0.4925]
[1761680749232,3.2078,4059.5,4058.9,0.4925]
[1761680749414,0.2299,4059.4,4059.3,0.44343]
[1761680749725,0.2299,4059.4,4059.0,4.621]
[1761680749726,3.2078,4060.0,4059.9,0.7804]
[1761680749931,3.4377,4060.0,4059.9,0.4518]
[1761680750120,0.23261539,4060.0,4059.9,0.4518]
[1761680750925,0.00271539,4060.0,4059.9,0.7804]
[1761680752123,0.34681539,4060.0,4059.9,0.4518]
[1761680752516,0.34681539,4060.0,4059.9,5.0728]
[1761680752716,0.57671539,4060.0,4059.9,0.4518]
[1761680752925,0.71511539,4060.0,4059.9,4.8415]
[1761680753833,0.00271539,4060.0,4059.9,5.4014]
[1761680754527,0.34681539,4060.0,4059.9,5.4014]
[1761680754728,0.34681539,4060.0,4057.8,3.23538756]
[1761680754729,0.3441,4059.7,4057.8,3.23538756]
[1761680754918,0.3441,4058.3,4057.9,0.3286]
[1761680755123,0.3441,4058.3,4057.8,3.23538756]
[1761680755523,0.574,4057.9,4057.8,3.45588756]
[1761680756226,0.7124,4057.9,4057.8,3.23538756]
[1761680756432,0.9383,4057.9,4057.8,7.86438756]
[1761680756624,0.9383,4057.9,4057.8,4.65658756]
[1761680759132,0.9383,4057.9,4057.8,0.02758756]
[1761680760530,0.7999,4057.4,4057.3,4.624]
[1761680760724,0.212,4057.9,4056.7,3.2078]
[1761680760725,0.7999,4056.8,4056.7,3.2078]
[1761680761026,0.1384,4057.2,4056.4,4.623]
[1761680761027,0.7999,4056.5,4056.4,4.623]
[1761680761325,0.1384,4057.2,4056.5,0.2205]
[1761680761631,0.7999,4056.6,4056.5,0.00247453]
[1761680762626,0.7999,4055.7,4055.6,3.2078]
[1761680762832,0.1384,4055.8,4053.9,1.11004]
[1761680762833,0.574,4055.2,4055.1,3.2078]
[1761680763225,0.7999,4055.2,4055.1,3.2078]
[1761680763423,0.7999,4055.2,4054.0,3.2078]
[1761680763424,0.3441,4054.3,4054.0,3.2078]
[1761680763624,0.3441,4054.3,4054.2,0.4518]
[1761680763625,0.00233665,4054.3,4054.2,0.4518]
[1761680763829,0.00233665,4054.3,4054.2,0.7804]
[1761680764242,0.34643665,4054.3,4054.2,0.7804]
[1761680764432,0.34643665,4054.3,4054.0,2.94610983]
[1761680764433,0.3441,4054.2,4054.0,6.15390983]
[1761680764928,0.3441,4054.2,4054.1,0.2205]
[1761680765132,0.7999,4054.2,4054.1,0.2205]
[1761680765323,0.00233665,4054.3,4054.2,1.22439]
[1761680765529,0.3441,4055.6,4055.2,0.3286]
[1761680765827,0.3441,4055.6,4055.2,3.5364]
[1761680766527,0.34695183,4055.6,4055.2,3.5364]
[1761680766725,0.34695183,4055.6,4055.2,4.634]
[1761680766726,0.7999,4055.3,4055.2,4.634]
[1761680768129,0.3441,4055.3,4055.2,5.4144]
[1761680768334,0.00285183,4055.6,4055.5,0.7804]
[1761680768535,0.00285183,4055.6,4055.5,3.9882]
[1761680768738,0.00285183,4055.6,4055.5,4.43204]
[1761680769536,0.00285183,4055.6,4055.5,3.9882]
[1761680770133,0.32885183,4055.6,4055.5,3.6596]
[1761680770334,0.54035183,4055.6,4055.5,7.8906]
[1761680770634,0.54035183,4055.6,4055.5,8.2305]
[1761680770635,0.00285183,4055.6,4055.5,8.2305]
[1761680771934,3.2078,4057.0,4056.9,0.7931]
[1761680772139,3.5338,4057.5,4057.4,0.2214]
[1761680772341,0.326,4057.4,4057.0,0.3399]
[1761680772533,0.7538,4057.0,4056.9,4.632]
[1761680772840,0.7538,4057.0,4054.9,1.10976]
[1761680772841,0.2115,4054.8,4054.7,0.2214]
[1761680773135,0.5375,4054.8,4054.7,0.22385919]
[1761680773338,0.326,4054.8,4054.7,0.22385919]
[1761680773534,0.326,4055.6,4055.5,0.4532]
[1761680773740,0.7538,4055.5,4055.4,4.649]
[1761680774231,0.326,4055.4,4054.7,3.21025919]
[1761680774438,0.5375,4054.9,4054.8,4.203]
[1761680774837,0.5375,4054.9,4054.8,4.4244]
[1761680776435,0.5375,4054.9,4054.8,0.2214]
[1761680776739,0.7538,4054.8,4054.7,3.21025919]
[1761680776944,0.5375,4054.8,4054.7,3.43165919]
[1761680778735,0.3383,4055.1,4055.0,0.2214]
[1761680779129,3.2078,4055.6,4055.0,0.7931]
[1761680779333,3.2078,4055.6,4055.4,0.2214]
[1761680779334,0.5375,4055.5,4055.4,0.2214]
[1761680779537,0.326,4055.5,4055.4,0.7931]
[1761680779730,3.2078,4056.1,4056.0,0.2214]
[1761680779932,0.1268,4056.5,4056.0,0.2214]
[1761680780134,0.326,4056.4,4056.0,0.2214]
[1761680780936,0.326,4056.4,4055.8,4.9949]
[1761680780937,0.7538,4055.9,4055.8,4.655]
[1761680781134,0.326,4056.4,4055.8,5.4481]
[1761680781639,0.326,4056.4,4056.3,0.2214]
[1761680781837,0.5375,4056.4,4056.3,0.2214]
[1761680782640,3.2078,4056.6,4056.5,0.2214]
[1761680782838,3.2078,4056.6,4056.5,0.7931]
[1761680783337,4.18902,4056.6,4056.5,0.4532]
[1761680783636,4.18902,4056.6,4056.5,0.2214]
[1761680783842,3.65152,4056.6,4056.5,0.7931]
[1761680784032,3.97752,4056.6,4056.5,0.7931]
[1761680784239,3.97752,4056.6,4056.5,0.4532]
[1761680784640,4.18902,4056.6,4056.5,0.4532]
[1761680786038,0.44372,4056.7,4056.6,0.7931]
[1761680786239,0.44372,4056.7,4056.6,5.4441]
[1761680788443,1.19752,4056.7,4056.1,3.2078]
[1761680788647,1.19752,4056.7,4055.2,0.2214]
[1761680788648,0.98137,4055.3,4055.2,0.2214]
[1761680788849,0.98139,4055.1,4055.0,3.304]
[1761680789050,0.44387,4055.3,4055.2,0.7931]
[1761680789952,0.98137,4055.3,4055.2,0.4532]
[1761680790152,0.98137,4055.3,4055.2,0.2214]
[1761680790747,1.19767,4055.3,4055.0,3.304]
[1761680790947,0.76991,4054.9,4054.8,3.4292]
[1761680791154,0.44391,4054.9,4054.8,8.6519]
[1761680791450,0.76991,4054.9,4054.8,8.312]
[1761680792056,0.98141,4054.9,4054.8,3.4292]
[1761680792259,0.98141,4054.9,4054.8,4.4504]
[1761680792556,0.76991,4054.9,4054.8,4.6822]
[1761680793357,0.98141,4054.9,4054.8,4.6822]
[1761680794666,0.8806,4054.8,4054.7,0.00245919]
[1761680795163,0.8806,4054.8,4054.7,0.22385919]
[1761680795364,0.8806,4054.8,4054.7,0.00245919]
[1761680798562,0.326,4054.8,4054.7,0.79555919]
[1761680798866,0.8806,4054.8,4054.7,0.00245919]
[1761680800063,0.5375,4054.8,4054.7,0.78975919]
[1761680800262,0.9039,4054.8,4054.7,0.00245919]
[1761680802566,0.9039,4054.8,4054.7,0.23195919]
[1761680802762,0.326,4054.8,4054.7,0.78975919]
[1761680803269,0.9064,4054.8,4054.7,0.23195919]
[1761680803468,0.9064,4054.8,4054.7,0.00245919]
[1761680803861,0.9064,4054.8,4054.7,4.64145919]
[1761680804063,1.35032,4054.8,4054.7,4.64145919]
[1761680807385,1.35032,4054.8,4054.7,5.08395919]
[1761680807681,0.98392,4054.8,4054.7,5.08395919]
[1761680808070,0.98392,4054.8,4054.7,5.42875919]
[1761680808071,0.44392,4054.8,4054.7,5.42875919]
[1761680808276,1.23645,4055.4,4055.3,0.7873]
[1761680808277,0.77516,4055.4,4055.3,0.7873]
[1761680808485,0.77516,4055.4,4055.3,8.6291]
[1761680808786,0.98916,4055.4,4055.3,8.6291]
[1761680808989,0.214,4056.0,4055.9,0.2295]
[1761680809177,0.5804,4056.0,4055.9,0.2295]
[1761680809375,0.1365,4056.0,4055.8,4.635]
[1761680809689,1.219,4055.9,4055.8,4.635]
[1761680810086,0.98916,4055.4,4055.3,3.4373]
[1761680810283,0.98916,4055.4,4055.3,8.0713]
[1761680810584,4.31722,4056.3,4055.3,8.0713]
[1761680810585,0.44382,4055.7,4055.6,0.213]
[1761680810786,0.44382,4055.7,4055.6,0.4425]
[1761680811287,0.98912,4055.7,4055.6,0.7873]
[1761680811486,0.44382,4055.8,4055.7,0.7873]
[1761680811688,0.44382,4055.8,4055.7,5.4203]
[1761680812982,0.77512,4055.8,4055.7,5.4203]
[1761680813292,4.31722,4056.3,4055.3,3.6503]
[1761680813293,1.35556,4055.4,4055.3,3.6503]
[1761680813488,1.35556,4055.4,4055.3,8.2813]
[1761680813979,1.12566,4055.4,4055.3,8.6261]
[1761680814293,1.10952,4055.9,4055.8,0.7873]
[1761680814294,0.4438,4055.9,4055.8,0.7873]
[1761680814474,0.4438,4055.9,4055.8,8.1846]
[1761680814681,0.44378,4056.2,4056.1,0.4425]
[1761680814882,1.44061,4056.7,4056.3,0.44376]
[1761680814883,0.44375,4056.4,4056.3,0.44376]
[1761680815077,0.44375,4056.4,4056.3,5.86406]
[1761680815683,3.2078,4056.8,4056.3,5.4203]
[1761680815885,0.44373,4056.6,4056.5,0.7873]
[1761680816089,0.44590465,4057.0,4056.9,0.7873]
[1761680816278,0.77720465,4057.0,4056.9,5.4193]
[1761680816481,0.99120465,4057.0,4056.9,5.0745]
[1761680816676,1.22110465,4057.0,4056.9,5.0745]
[1761680817387,0.98903,4056.6,4056.5,0.2295]
[1761680817685,0.4678,4056.6,4056.1,4.63]
[1761680817894,0.44377,4056.2,4056.1,5.4173]
[1761680818187,0.77507,4056.2,4056.1,5.4173]
[1761680819288,0.44377,4056.2,4056.1,5.4173]
[1761680819884,0.77507,4056.2,4056.1,5.4173]
[1761680820085,0.77507,4056.2,4056.1,5.0725]
[1761680820494,0.98907,4056.2,4056.1,5.0725]
[1761680820690,1.21897,4056.2,4056.1,4.8595]
[1761680821188,0.44377,4056.2,4056.1,5.4173]
[1761680821783,0.44377,4056.2,4056.1,5.0725]
[1761680821784,0.98907,4056.2,4056.1,5.0725]
[1761680821988,1.21897,4056.2,4056.1,4.8595]
[1761680822189,1.21897,4056.2,4056.1,0.2295]
[1761680822396,0.98911,4055.8,4055.7,3.4373]
[1761680822586,0.44381,4055.8,4055.7,8.6231]
[1761680822785,1.10944,4056.2,4055.7,8.6231]
[1761680822786,0.44376,4056.3,4056.2,0.5578]
[1761680822986,0.44376,4056.3,4056.2,5.4153]
[1761680823187,0.88766,4056.3,4056.2,4.628]
[1761680823387,1.21896,4056.3,4056.2,4.628]
[1761680824391,1.21901,4055.8,4055.7,3.2078]
[1761680824591,0.44381,4055.8,4055.7,7.8358]
[1761680824791,0.44381,4055.8,4055.7,8.2783]
[1761680825187,0.44381,4055.8,4055.7,8.6231]
[1761680826495,0.44381,4055.9,4055.8,0.5578]
[1761680826801,0.44381,4055.9,4055.8,0.7873]
[1761680827397,0.77511,4055.9,4055.8,0.7873]
[1761680828200,0.44381,4055.9,4055.8,0.7873]
[1761680828602,1.23451,4055.9,4055.8,0.4425]
[1761680828902,1.23451,4055.9,4055.8,5.0705]
[1761680829100,1.23451,4055.9,4055.8,5.3985]
[1761680829299,1.23451,4055.9,4055.8,5.0705]
[1761680829600,0.2139,4055.5,4055.4,0.2219]
[1761680829900,0.5611,4055.5,4055.4,4.8499]
[1761680830093,1.00495,4055.5,4055.4,4.8499]
[1761680830292,1.32605,4055.5,4055.4,4.8499]
[1761680830695,1.32605,4055.5,4055.4,4.628]
[1761680831099,1.32612,4054.8,4054.7,0.00245919]
[1761680831505,1.32612,4054.8,4054.7,4.62945919]
[1761680833301,0.44392,4054.8,4054.7,5.38925919]
[1761680834001,0.97892,4054.8,4054.7,5.06635919]
[1761680834297,1.32612,4054.8,4054.7,0.00245919]
[1761680835298,1.32612,4054.8,4054.7,0.43935919]
[1761680836008,0.44392,4054.8,4054.7,0.76225919]
[1761680837295,1.32612,4054.8,4054.7,0.00245919]
[1761680837501,1.32612,4054.8,4054.7,0.22435919]
[1761680837702,1.32612,4054.8,4054.7,0.43935919]
[1761680837906,1.32612,4054.8,4054.7,0.76225919]
[1761680837907,0.44392,4054.8,4054.7,0.76225919]
[1761680838411,0.76502,4054.8,4054.7,0.76225919]
[1761680839004,0.97892,4054.8,4054.7,0.76225919]
[1761680839210,1.32612,4054.8,4054.7,0.43935919]
[1761680839711,0.44392,4054.8,4054.7,0.76225919]
[1761680840008,0.97892,4054.8,4054.7,0.76225919]
[1761680840202,1.19382,4054.8,4054.7,0.43935919]
[1761680840602,1.19382,4054.8,4054.7,0.22435919]
[1761680840808,1.19382,4054.8,4054.7,0.00245919]
[1761680841009,1.19382,4054.8,4054.7,4.85235919]
[1761680841407,1.19382,4054.8,4054.7,4.63045919]
[1761680841601,1.19382,4054.8,4054.7,0.00245919]
[1761680843410,0.44402,4053.9,4053.8,2.97005919]
[1761680843603,0.76512,4053.9,4053.8,7.59805919]
[1761680843803,0.97902,4053.9,4053.8,7.59805919]
[1761680844001,1.19392,4053.9,4053.8,4.628]
[1761680844407,1.19602013,4053.9,4053.8,4.63040429]
[1761680844610,1.19602013,4053.9,4053.8,4.85230429]
[1761680845314,0.4288,4053.4,4052.7,3.2078]
[1761680845616,0.535,4052.9,4052.8,0.7844743]
[1761680845909,0.44412,4053.0,4052.8,0.88528503]
[1761680846212,0.44406,4053.5,4053.4,0.7598]
[1761680846411,0.44406,4053.5,4053.4,5.39050795]
[1761680846606,0.76516,4053.5,4053.4,5.39050795]
[1761680846811,0.44406,4053.6,4053.4,5.49131868]
[1761680847009,0.76516,4053.6,4053.5,0.7598]
[1761680848010,0.76516,4053.6,4053.5,0.86061073]
[1761680848507,0.97906,4053.6,4053.5,0.86061073]
[1761680848713,0.76516,4053.6,4053.5,0.86061073]
[1761680849511,0.44406,4053.6,4053.5,0.86061073]
[1761680849910,0.97906,4053.6,4053.5,0.53771073]
[1761680850518,0.97906,4053.6,4053.5,0.86061073]
[1761680851110,1.19396,4053.6,4053.5,0.10081073]
[1761680851514,1.19396,4053.6,4053.5,4.72881073]
[1761680851718,1.19396,4053.6,4053.5,4.95071073]
[1761680853515,1.19396,4053.6,4053.5,4.72881073]
[1761680853713,1.19396,4053.6,4053.5,0.10081073]
[1761680855621,1.26836,4053.6,4053.5,0.10081073]
[1761680855819,3.20990013,4053.9,4053.4,7.95e-06]
[1761680855820,1.32627,4053.5,4053.4,7.95e-06]
[1761680856022,1.32627,4053.5,4052.8,0.0246743]
[1761680856023,1.19403,4052.9,4052.8,0.0246743]
[1761680856214,4.40183,4052.9,4052.8,0.0246743]
[1761680856416,0.65813,4052.1,4052.0,4.8499]
[1761680856621,0.65813,4052.1,4052.0,5.3878]
[1761680856922,0.97918,4052.5,4052.4,0.7598]
[1761680857112,1.19408,4052.5,4052.4,0.4369]
[1761680857423,1.19412,4052.1,4052.0,0.76265169]
[1761680857612,0.7499,4052.1,4052.0,5.12065169]
[1761680857819,1.19412,4052.1,4052.0,5.12065169]
[1761680858616,1.19412,4052.1,4052.0,0.00285169]
[1761680858924,1.19412,4052.1,4052.0,4.63185169]
[1761680859221,1.19412,4052.1,4052.0,0.00285169]
[1761680860123,1.19412,4052.1,4052.0,0.23705169]
[1761680861828,1.00729,4052.4,4052.3,0.231]
[1761680862028,3.2078,4052.9,4052.3,5.4293]
[1761680862328,0.91216,4052.7,4052.6,0.4652]
[1761680862731,1.24146,4052.7,4052.6,0.4652]
[1761680862925,0.44416,4052.7,4052.6,1.24447]
[1761680863131,0.44416,4052.7,4052.6,0.8003]
[1761680863326,1.00726,4052.7,4052.6,0.4652]
[1761680863527,1.24146,4052.7,4052.6,0.4652]
[1761680863832,1.00726,4052.7,4052.6,5.4293]
[1761680864332,0.77346,4052.7,4052.6,5.4293]
[1761680864533,0.77346,4052.7,4052.6,5.87347]
[1761680864725,0.44414,4052.9,4052.8,0.8003]
[1761680865538,0.77344,4052.9,4052.8,0.8003]
[1761680865734,0.77344,4052.9,4052.8,0.4652]
[1761680865735,1.24144,4052.9,4052.8,0.4652]
[1761680865923,1.24144,4052.9,4052.8,0.2342]
[1761680866125,1.24146,4052.7,4052.6,4.8632]
[1761680866327,1.24146,4052.7,4052.6,0.2342]
[1761680866533,1.00726,4052.7,4052.6,5.0942]
[1761680866736,1.00726,4052.7,4052.6,5.87347]
[1761680867028,0.44416,4052.7,4052.6,5.87347]
[1761680867834,0.44416,4052.7,4052.6,5.4293]
[1761680868025,0.44416,4052.7,4052.6,5.87347]
[1761680868228,0.4633,4053.0,4052.0,0.08485169]
[1761680868229,0.5631,4052.1,4052.0,0.80315169]
[1761680868526,1.00732,4052.1,4052.0,0.80315169]
[1761680869423,1.00732,4052.1,4052.0,0.46805169]
[1761680869629,1.24152,4052.1,4052.0,0.00285169]
[1761680870037,1.24152,4052.1,4052.0,0.46805169]
[1761680870234,1.24152,4052.1,4052.0,0.80315169]
[1761680870434,1.24152,4052.1,4052.0,0.46805169]
[1761680870622,1.24152,4052.1,4052.0,0.80315169]
[1761680871137,1.24152,4052.1,4052.0,0.46805169]
[1761680871332,1.24152,4052.1,4052.0,0.23705169]
[1761680871537,1.24152,4052.1,4052.0,4.86605169]
[1761680871832,1.24152,4052.1,4052.0,4.63185169]
[1761680872037,1.24152,4052.1,4052.0,4.86605169]
[1761680872432,1.24152,4052.1,4052.0,5.09705169]
[1761680874538,1.24152,4052.1,4052.0,4.63185169]
[1761680875033,1.24152,4052.1,4052.0,4.86605169]
[1761680876634,1.24152,4052.1,4052.0,5.43215169]
[1761680877130,1.24152,4052.1,4052.0,4.86605169]
[1761680877326,1.24152,4052.1,4052.0,5.09705169]
[1761680877737,1.24152,4052.1,4052.0,5.43215169]
[1761680878336,0.2338,4052.4,4052.3,0.231]
[1761680878540,0.91219,4052.4,4052.3,5.0942]
[1761680878933,1.24149,4052.4,4052.3,5.0942]
[1761680879341,1.24149,4052.4,4052.3,5.4293]
[1761680879539,1.00729,4052.4,4052.3,5.4293]
[1761680879734,1.24152,4052.1,4052.0,0.80315169]
[1761680880040,0.44422,4052.1,4052.0,5.43215169]
[1761680880434,1.24152,4052.1,4052.0,0.46805169]
[1761680880735,1.24152,4052.1,4052.0,0.00285169]
[1761680881136,4.44932,4052.1,4052.0,0.00285169]
[1761680882535,5.04296346,4052.1,4052.0,0.00285169]
[1761680882735,5.04296381,4052.1,4052.0,0.00285169]
[1761680883046,1.2416,4051.4,4051.3,0.02509989]
[1761680883241,1.2416,4051.4,4051.3,0.25929989]
[1761680883944,1.2416,4051.4,4051.3,0.82742303]
[1761680884336,1.2416,4051.4,4051.3,0.49232303]
[1761680884640,0.134,4052.0,4051.3,0.49232303]
[1761680884641,0.3293,4051.9,4051.5,0.3351]
[1761680884840,1.00735,4051.9,4051.8,0.8003]
[1761680885346,1.24157,4051.7,4051.6,4.8622]
[1761680885637,1.24157,4051.7,4051.6,5.0932]
[1761680885831,0.44427,4051.7,4051.6,5.4283]
[1761680886244,0.5631,4052.0,4051.9,0.5661]
[1761680886544,1.37553,4052.0,4051.9,0.4652]
[1761680886841,1.24153,4052.0,4051.9,0.8003]
[1761680887439,0.44423,4052.0,4051.8,0.44425]
[1761680887638,0.4442,4052.3,4052.2,0.231]
[1761680887937,0.3678,4053.0,4052.9,0.2342]
[1761680888137,0.67792,4053.0,4052.9,5.4283]
[1761680888339,1.24405,4054.0,4052.9,5.4283]
[1761680888340,0.44407,4053.5,4053.4,0.8003]
[1761680888533,0.00210013,4053.9,4053.8,0.4668]
[1761680888733,0.00210013,4053.9,4053.8,5.4454]
[1761680889137,0.00210013,4053.9,4053.8,5.0948]
[1761680889138,0.57320013,4053.9,4053.8,5.0948]
[1761680889338,0.44406,4053.6,4053.4,0.3506]
[1761680889546,1.23856,4053.6,4053.5,4.628]
[1761680889745,1.23856,4053.6,4053.0,0.3506]
[1761680889746,0.44408,4053.4,4053.0,0.3506]
[1761680889937,0.77738,4053.4,4053.3,0.2111]
[1761680890144,0.99508,4053.4,4053.3,0.4287]
[1761680890543,0.99508,4053.4,4053.3,0.7491]
[1761680890934,0.00210013,4053.9,4053.3,0.7491]
[1761680890935,0.44613013,4053.9,4053.8,0.7491]
[1761680891147,0.00210013,4053.9,4053.8,5.3771]
[1761680893044,1.10972,4055.2,4053.8,5.3771]
[1761680893045,0.4439,4055.1,4055.0,0.4287]
[1761680893246,0.66155,4055.5,4055.4,0.7491]
[1761680893452,0.44385,4055.5,4055.4,5.3761]
[1761680893747,0.44394,4054.7,4054.6,0.2176]
[1761680893944,0.44640777,4054.7,4054.6,5.37908883]
[1761680894138,0.66410777,4054.7,4054.6,0.43168883]
[1761680894447,1.21450777,4054.7,4054.6,4.62998883]
[1761680894845,1.21450777,4054.7,4054.6,4.84758883]
[1761680895041,0.99740777,4054.7,4054.6,5.37908883]
[1761680895246,1.21450777,4054.7,4054.6,4.84758883]
[1761680895942,1.21450777,4054.7,4054.6,0.00298883]
[1761680896150,1.21450777,4054.7,4054.6,4.62998883]
[1761680897051,1.21450777,4054.7,4054.6,4.84758883]
[1761680897353,1.21450777,4054.7,4054.6,4.62998883]
[1761680897549,1.21218,4053.4,4053.3,0.2176]
[1761680897849,0.44417,4052.6,4052.5,0.3204]
[1761680898148,0.9952,4052.3,4052.2,0.2176]
[1761680898354,0.9952,4052.3,4052.2,4.8436]
[1761680898650,0.4442,4052.3,4052.2,5.37687766]
[1761680898840,0.7775,4052.3,4052.2,5.05647766]
[1761680899045,1.3518,4052.3,4052.2,0.00177766]
[1761680899247,1.3518,4052.3,4052.2,4.62777766]
[1761680899448,1.3518,4052.3,4052.2,0.00177766]
[1761680899649,1.3518,4052.3,4052.2,4.84537766]
[1761680899849,0.4442,4052.3,4052.2,5.37687766]
[1761680900254,1.3518,4052.3,4052.2,4.62777766]
[1761680900849,1.3518,4052.3,4052.2,0.00177766]
[1761680904547,1.3518,4052.3,4052.2,0.21937766]
[1761680904754,0.9952,4052.3,4052.2,0.43047766]
[1761680905050,0.4442,4052.3,4052.2,0.75087766]
[1761680905354,0.9952,4052.3,4052.2,0.43047766]
[1761680905951,0.9952,4052.3,4052.2,0.00177766]
[1761680905952,1.2123,4052.3,4052.2,0.00177766]
[1761680906348,1.2123,4052.3,4052.2,0.21937766]
[1761680906546,0.9952,4052.3,4052.2,0.43047766]
[1761680906947,0.4442,4052.3,4052.2,0.75087766]
[1761680907142,1.13463,4053.0,4052.9,0.2176]
[1761680907349,0.44413,4053.0,4052.9,0.7491]
[1761680907548,3.6519,4053.2,4053.1,0.7491]
[1761680907749,4.2029,4053.2,4053.1,5.0547]
[1761680908054,4.42,4053.2,4053.1,4.8436]
[1761680908445,3.9852,4053.2,4053.1,5.0547]
[1761680908654,3.9852,4053.2,4053.1,5.3751]
[1761680909051,4.2029,4053.2,4053.1,0.4287]
[1761680909355,3.6519,4053.2,4053.1,5.3751]
[1761680911458,3.9852,4053.2,4053.1,5.3751]
[1761680911651,4.2029,4053.2,4053.1,5.0547]
[1761680913459,4.2029,4053.2,4053.1,5.3751]
[1761680913757,3.6519,4053.2,4053.1,5.3751]
[1761680913957,3.9852,4053.2,4053.1,5.3751]
[1761680914455,4.2029,4053.2,4053.1,5.0547]
[1761680914761,3.2078,4053.2,4053.1,5.3751]
[1761680915261,3.5411,4053.2,4053.1,5.3751]
[1761680915559,4.2029,4053.2,4053.1,5.0547]
[1761680916060,3.7588,4053.2,4053.1,5.0547]
[1761680917256,3.7588,4053.2,4053.1,5.3751]
[1761680917455,3.7588,4053.2,4052.7,3.4254]
[1761680917456,0.7681,4052.8,4052.7,3.4254]
[1761680917760,0.7681,4052.8,4052.7,8.70566]
[1761680917961,0.551,4052.8,4052.7,8.5819]
[1761680918157,3.2078,4053.8,4053.7,0.44405]
[1761680918464,13.3116,4056.8,4055.3,0.538]
[1761680918465,0.2177,4055.4,4055.3,0.538]
[1761680918659,3.6426,4055.4,4055.3,4.625]
[1761680918858,3.6426,4055.4,4054.8,0.1385]
[1761680918859,0.44391,4055.0,4054.8,4.646]
[1761680919054,3.3473,4055.4,4053.6,0.58255]
[1761680919055,0.66172,4054.0,4053.9,3.4254]
[1761680919256,0.22085579,4054.0,4053.9,8.39383861]
[1761680919456,3.42865579,4054.0,4053.9,8.39383861]
[1761680920061,3.42865579,4054.0,4053.9,3.74783861]
[1761680920261,3.96805579,4054.0,4053.9,3.20983861]
[1761680920556,3.96805579,4054.0,4052.4,0.1385]
[1761680920557,0.2212,4053.2,4053.1,0.5512]
[1761680920753,0.77062,4053.1,4052.8,0.3252]
[1761680920950,0.2212,4053.0,4052.9,0.3252]